Cogmind - Beta 15 @@@ ROGUE MODE // 2025.06.20 @ 21:10:11 Player: RNGesus Result: Destroyed by as-26155 with Assembled Heavy Rifle Performance ------------- Evolutions (1) 500 Regions Visited (5) 1000 Robots Destroyed (101) 505 Value Destroyed (2515) 2515 Prototype IDs (27) 540 Alien Tech Used (0) 0 Bonus (252) 252 TOTAL SCORE: 5312 Bonus ------- Aligned with FarCom 300 Friendly Fire -48 Cogmind --------- Core Integrity 0/400 Matter 162/300 Energy 100/100 System Corruption 4% Temperature Cool (20) Movement Treading (385) Ox3 Location -9/Exiles Parts ------- > --- POWER (1) -------- (None) > --- PROPULSION (3) --- Armored Treads Advanced Treads > --- UTILITY (3) ------ Huge Storage Unit Advanced Targeting Computer > --- WEAPON (2) ------- Minigun Minigun > --- INVENTORY (25) --- Light Nuclear Core Armored Treads Armored Treads Armored Treads Advanced Treads Advanced Treads Improved Flight Unit Improved Flight Unit Improved Flight Unit Improved Flight Unit Cooling System Machine Analyzer Hardened Light Armor Plating Hardened Light Armor Plating Splice Drone Bay (6/6) Autogun Shotgun Shotgun Grenade Launcher Rocket Launcher Datajack Plasma Cutter Katana Peak State ------------ > --- POWER ------------ Improved Ion Engine > --- PROPULSION ------- Armored Treads Advanced Treads Advanced Treads > --- UTILITY ---------- Huge Storage Unit Advanced Targeting Computer Hardened Light Armor Plating > --- WEAPON ----------- Minigun Minigun > --- INVENTORY -------- Light Nuclear Core Armored Treads Armored Treads Armored Treads Advanced Treads Advanced Treads Improved Flight Unit Improved Flight Unit Improved Flight Unit Improved Flight Unit Cooling System Machine Analyzer Hardened Light Armor Plating Hardened Light Armor Plating Splice Drone Bay Minigun Minigun Grenade Launcher Rocket Launcher Datajack Plasma Cutter Katana [Rating: 29] Favorites ----------- Power Improved Ion Engine Engine Improved Ion Engine Power Core Light Nuclear Core Propulsion Advanced Treads Treads Advanced Treads Leg Aluminum Leg Wheel Compact Wheel Flight Unit Improved Flight Unit Utility Huge Storage Unit Device Cooling System Storage Huge Storage Unit Processor Advanced Targeting Computer Protection Light Armor Plating Weapon Minigun Energy Gun Medium Laser Ballistic Gun Minigun Launcher Grenade Launcher Slashing Weapon Katana Build | -11 -10 -10 -9 -9 -9 ------- Run | Yrd Mat Min Mat Min Exi Slots Evolved 2 | . . . 2 . . Power . | . . . . . . Propulsion 1 | . . . 1 . . Utility 1 | . . . 1 . . Weapon . | . . . . . . Parts Attached 62 | 7 10 7 36 . 2 Power 7 | 1 2 1 3 . . Engine 6 | 1 2 . 3 . . Core 1 | . . 1 . . . Reactor . | . . . . . . Propulsion 17 | 2 3 2 10 . . Treads 11 | 2 . 1 8 . . Leg 3 | . 2 1 . . . Wheel 2 | . 1 . 1 . . Hover . | . . . . . . Flight 1 | . . . 1 . . Utility 15 | 1 3 2 9 . . Device 5 | . 1 1 3 . . Storage 4 | 1 1 . 2 . . Processor 1 | . . . 1 . . Hackware . | . . . . . . Protection 5 | . 1 1 3 . . Artifact . | . . . . . . Weapon 23 | 3 2 2 14 . 2 Energy Gun 5 | 2 . . 3 . . Energy Cannon . | . . . . . . Ballistic Gun 15 | 1 2 1 9 . 2 Ballistic Cannon . | . . . . . . Launcher 2 | . . 1 1 . . Special Weapon . | . . . . . . Impact Weapon . | . . . . . . Slashing Weapon 1 | . . . 1 . . Piercing Weapon . | . . . . . . Special Melee Weapon . | . . . . . . Unidentified Prototypes 2 | . . 1 1 . . Parts Lost 29 | . 5 2 17 . 5 Power 5 | . 1 1 2 . 1 Propulsion 10 | . 2 . 7 . 1 Utility 6 | . 2 . 3 . 1 Weapon 8 | . . 1 5 . 2 Highest Loss Streak 9 | . 2 1 9 . 5 To Critical Strikes 3 | . . . . . 3 Average Backups 15 | . 8 13 15 25 24 Power . | . . 1 1 1 . Propulsion 5 | . 1 4 5 9 9 Utility 3 | . 2 3 2 5 5 Weapon 5 | . 4 3 4 8 7 Tool/Special . | . . . . . . Unused Backups 27 | . 1 . 9 1 16 Power 6 | . . . 1 1 4 Propulsion 13 | . 1 . 5 . 7 Utility 6 | . . . 3 . 3 Weapon . | . . . . . . Tool/Special 2 | . . . . . 2 Average Slot Usage (%) 96 | . 96 98 93 100 99 Engine 11 | . 12 12 10 11 10 Treads 24 | . 16 . 28 33 33 Leg 5 | . 10 27 1 . . Device 5 | . 5 . 10 . . Storage 11 | . 14 14 10 11 11 Processor 3 | . . . . 11 11 Protection 9 | . 7 13 9 11 10 Energy Gun 2 | . 9 . 1 . . Ballistic Gun 20 | . 18 28 18 22 22 Peak Build Rating 29 | 6 8 15 29 29 29 Average Rating 17 | 4 7 8 18 29 28 On Entrance 13 | . 6 7 11 29 29 Naked Turns . | . . . . . . Heaviest Build 102 | 11 32 30 102 98 98 Greatest Support 64 | 40 40 20 64 64 64 Greatest Overweight (x) 7 | . 1 1 7 1 1 Average Overweight (x) . | . . 1 . 1 1 Largest Inventory Capacity 25 | 8 15 15 25 25 25 Average Capacity 20 | 6 14 15 21 25 25 Most Carried 25 | 1 15 15 25 25 25 Average Carried 15 | . 8 13 15 25 24 Final Capacity 25 | 8 15 15 25 25 25 Final Carried 25 | 1 15 14 25 25 23 Class Distribution -------------------- 81% | Mutant 18% | Scavenger-Mutant Dominant Class ---------------- Mutant | -10/Materials Mutant | -10/Mines Mutant | -9/Materials Mutant | -9/Mines Mutant | -9/Exiles Resources | -11 -10 -10 -9 -9 -9 ----------- Run | Yrd Mat Min Mat Min Exi Matter Collected 2078 | 182 566 153 1057 120 . Remotely 482 | . . . 482 . . Salvage Created 3350 | . 908 242 1832 368 . Parts 212 | . 52 21 111 28 . Haulers Intercepted 6 | . 2 . 4 . . Recyclers Shooed 8 | . 1 . 7 . . Parts Field Recycled . | . . . . . . Retrieved Matter . | . . . . . . Parts Self-Destructed . | . . . . . . Prevented . | . . . . . . Kills | -11 -10 -10 -9 -9 -9 ------- Run | Yrd Mat Min Mat Min Exi Combat Hostiles Destroyed 71 | . 19 10 32 10 . Guns 62 | . 19 7 26 10 . AOE 9 | . . 3 6 . . Classes Destroyed 12 | . 6 . 6 . . Worker 5 | . . . 4 1 . Builder 3 | . . . 3 . . Tunneler 2 | . 1 . 1 . . Hauler 6 | . 2 . 4 . . Recycler 6 | . 1 . 5 . . Mechanic 1 | . . . 1 . . Operator 4 | . 2 . 2 . . Watcher 3 | . . . 3 . . Swarmer 21 | . 6 6 6 3 . Grunt 41 | . 13 4 17 7 . Duelist 1 | . . . 1 . . Sentry 8 | . . . 8 . . Best Kill Streak 9 | . 4 3 9 4 . Combat Bots Only 5 | . 3 3 5 3 . Max Kills in Single Turn 4 | . 1 3 4 2 . Gunslinging 1 | . . . 1 1 . Exploded 3 | . . 3 1 . . Melee . | . . . . . . Uniques/NPCs Destroyed . | . . . . . . Combat | -11 -10 -10 -9 -9 -9 -------- Run | Yrd Mat Min Mat Min Exi Hostile Shots Fired 475 | . 109 54 195 42 75 Missed 122 | . 28 13 52 11 18 Hits 353 | . 81 41 143 31 57 Melee 8 | . . . . . 8 Projectile 345 | . 81 41 143 31 49 Critical Strikes 15 | . 2 1 2 . 10 Part Disruptions 2 | . . . . . 2 Damage Taken 4350 | . 858 372 1810 388 922 Core 627 | . 139 73 257 36 122 Absorbed by Shields . | . . . . . . Core Remaining (%) 57 | 100 . 15 . . . Volleys Fired 299 | . 100 29 140 20 10 Largest 2 | . 2 2 2 2 2 Hottest 80 | . 70 40 80 50 50 Shots Fired 546 | . 200 56 231 40 19 Gun 534 | . 200 55 220 40 19 Cannon . | . . . . . . Launcher 12 | . . 1 11 . . Special . | . . . . . . Kinetic 444 | . 131 55 199 40 19 Thermal 90 | . 69 . 21 . . Explosive 12 | . . 1 11 . . Electromagnetic . | . . . . . . Robot Hit Streak 17 | . 12 5 17 13 16 Robot Miss Streak 8 | . 8 8 4 4 1 Penetration Max . | . . . . . . Secondary Targets 8 | . 2 . 3 3 . Max Gunslinging Chain 1 | . 1 . 1 1 . Shots Hit Robots 363 | . 126 25 166 29 17 Core Hits 170 | . 45 18 90 14 3 Critical Kills . | . . . . . . Critical Parts Destroyed . | . . . . . . Critical Strikes 2 | . 2 . . . . Burn 2 | . 2 . . . . Melee Attacks 5 | . . . 5 . . Impact . | . . . . . . Slashing 5 | . . . 5 . . Piercing . | . . . . . . Sneak Attacks 5 | . . . 5 . . Combat Hostiles . | . . . . . . Follow-up Attacks . | . . . . . . Damage Inflicted 6000 | . 1581 384 3180 571 284 Guns 4560 | . 1581 239 1895 561 284 Cannons . | . . . . . . Explosions 1070 | . . 145 915 10 . Melee 370 | . . . 370 . . Ramming . | . . . . . . Kinetic 3855 | . 1077 239 1694 561 284 Thermal 752 | . 504 37 201 10 . Explosive 1023 | . . 108 915 . . Electromagnetic . | . . . . . . Impact . | . . . . . . Slashing 370 | . . . 370 . . Piercing . | . . . . . . Highest Corruption 4 | . . . . . 4 Average Corruption 4 | . . . . . 4 Corruption Purged . | . . . . . . Corruption Blocked . | . . . . . . Effects 1 | . . . . . 1 Matter Fused 1 | . . . . . 1 Overload Shots . | . . . . . . Overflow Damage 141 | . . . 141 . . Projectiles . | . . . . . . Explosions 1 | . . . 1 . . Melee 140 | . . . 140 . . Knockbacks . | . . . . . . Impact . | . . . . . . Kinetic . | . . . . . . Secondary . | . . . . . . Self-Inflicted Damage 5 | . . . 5 . . Shots 1 | . . . 1 . . Rammed . | . . . . . . Targets Rammed . | . . . . . . Kicked . | . . . . . . Crushed . | . . . . . . Highest Temperature 237 | . 237 47 44 168 29 Average Temperature 38 | . 42 14 11 65 11 Received Heat Transfer 1430 | . 363 111 624 192 140 Siege Activations . | . . . . . . Martial Activations . | . . . . . . Shielding Activations . | . . . . . . Robots Disrupted . | . . . . . . Combat Hostiles . | . . . . . . Robots Corrupted . | . . . . . . Combat Hostiles . | . . . . . . Parts Fried . | . . . . . . Impact Corruptions . | . . . . . . Robots Melted . | . . . . . . Combat Hostiles . | . . . . . . Parts Melted 3 | . 3 . . . . Heat Transferred 2178 | . 1628 50 450 50 . Parts Sabotaged . | . . . . . . Parts Stolen . | . . . . . . Parts Stripped . | . . . . . . Power Chain Reactions . | . . . . . . Alert | -11 -10 -10 -9 -9 -9 ------- Run | Yrd Mat Min Mat Min Exi Maximum Alert Level 1 | . 1 1 1 . . Low Security (%) 52 | 100 94 30 20 100 . Level 1 47 | . 5 69 79 . . Level 2 . | . . . . . . Level 3 . | . . . . . . Level 4 . | . . . . . . Level 5 . | . . . . . . High Security . | . . . . . . Max Security . | . . . . . . Peak Influence 393 | . 224 393 360 182 . Initial 132 | . . 64 128 132 . Average 201 | . 118 254 265 109 . Influence Increases 2489 | . 615 539 1053 282 . Destroy 0b10 Robot/C 1420 | . 380 200 640 200 . Destroy 0b10 Robot/NC 150 | . 30 . 115 5 . Destroy Leader 368 | . 104 40 184 40 . Successful Hack 29 | . 11 . 11 7 . Select Force Hacks 90 | . 60 . 30 . . Disable Machine 270 | . . 240 15 15 . Destroy Structure 132 | . . 59 58 15 . Lose Combat Pursuer 30 | . 30 . . . . Influence Decreases 2489 | . 450 375 1043 501 120 Entered New Map 629 | . . 101 201 207 120 Time Decay 1620 | . 400 254 672 294 . Lost Part 240 | . 50 20 170 . . Squads Dispatched 10 | . 6 . 4 . . Investigation 6 | . 4 . 2 . . Extermination . | . . . . . . Reinforcement 4 | . 2 . 2 . . Assault . | . . . . . . Garrison . | . . . . . . Intercept . | . . . . . . Searches Triggered . | . . . . . . Construction Impeded . | . . . . . . Haulers Reinforced . | . . . . . . Active Scanning Responses . | . . . . . . Cargo Convoy Interrupts . | . . . . . . Stealth | -11 -10 -10 -9 -9 -9 --------- Run | Yrd Mat Min Mat Min Exi Distress Signals 12 | . 6 . 6 . . Communications Jammed . | . . . . . . Distress Signals . | . . . . . . Times Spotted 120 | . 42 9 52 10 7 Peak Tracking Total 9 | . 6 3 4 3 9 Tactical Retreats 2 | . 2 . . . . Traps | -11 -10 -10 -9 -9 -9 ------- Run | Yrd Mat Min Mat Min Exi Traps Triggered 1 | . 1 . . . . Indirectly . | . . . . . . Trap Hack Attempts . | . . . . . . Triggered . | . . . . . . Disarmed . | . . . . . . Reprogrammed . | . . . . . . Reused . | . . . . . . Traps Extracted . | . . . . . . Installed . | . . . . . . Triggered . | . . . . . . Machines | -11 -10 -10 -9 -9 -9 ---------- Run | Yrd Mat Min Mat Min Exi Machines Disabled 18 | . . 16 1 1 . Max in Single Turn 16 | . . 16 1 1 . Machines Repaired . | . . . . . . Machines Dismantled . | . . . . . . Machines Sabotaged . | . . . . . . Overloaded Fab Kills . | . . . . . . Hacking | -11 -10 -10 -9 -9 -9 --------- Run | Yrd Mat Min Mat Min Exi Machines Accessed 18 | . 8 1 6 1 2 Terminals 9 | . 5 . 3 1 . Fabricators . | . . . . . . Repair Stations 1 | . 1 . . . . Recycling Units 4 | . 2 . 2 . . Scanalyzers 1 | . . . 1 . . Garrison Access . | . . . . . . Total Hacks 35 | . 17 1 13 2 2 Successful 16 | . 5 1 7 1 2 Failed 19 | . 12 . 6 1 . Catastrophic 7 | . 5 . 2 . . Database Lockouts . | . . . . . . Manual 21 | . 14 . 4 2 1 Terminals 22 | . 13 . 7 2 . Fabricators . | . . . . . . Repair Stations 1 | . 1 . . . . Recycling Units 7 | . 3 . 4 . . Scanalyzers 2 | . . . 2 . . Garrison Access . | . . . . . . Terminal Hacks 7 | . 1 1 2 1 2 Record 1 | . . . . . 1 Part Schematic 1 | . . . . 1 . Prototype ID Bank 1 | . 1 . . . . Open Door 1 | . . 1 . . . Branch Access Points 1 | . . . 1 . . Hauler Manifests 1 | . . . 1 . . Proto ID Catalog 1 | . . . . . 1 Fabricator Hacks . | . . . . . . Repair Station Hacks . | . . . . . . Recycling Unit Hacks . | . . . . . . Scanalyzer 2 | . . . 2 . . Insert Component 1 | . . . 1 . . Analyze 1 | . . . 1 . . Garrison Access Hacks . | . . . . . . Unauthorized Hacks 7 | . 4 . 3 . . Terminals 3 | . 1 . 2 . . Botnet 1 | . . . 1 . . Operators 2 | . 1 . 1 . . Fabricators . | . . . . . . Repair Stations 1 | . 1 . . . . Mechanics 1 | . 1 . . . . Recycling Units 3 | . 2 . 1 . . Tunnel 3 | . 2 . 1 . . Scanalyzers . | . . . . . . Garrison Access . | . . . . . . Data Cores Recovered . | . . . . . . Used . | . . . . . . Hacking Detections 13 | . 7 . 5 1 . Full Trace Events 3 | . 2 . 1 . . Feedback Events . | . . . . . . Feedback Blocked . | . . . . . . Robot Schematics Acquired . | . . . . . . Robots Built . | . . . . . . Authchips . | . . . . . . Time . | . . . . . . Total Robot Build Rating . | . . . . . . Part Schematics Acquired 1 | . . . 1 . . Parts Built . | . . . . . . Authchips . | . . . . . . Time . | . . . . . . Total Part Build Rating . | . . . . . . Parts Repaired . | . . . . . . Time . | . . . . . . Parts Recycled . | . . . . . . Recycled Matter . | . . . . . . Retrieved Matter . | . . . . . . Retrieved Components . | . . . . . . Parts Scanalyzed 1 | . . . 1 . . Part Schematics Acquired 1 | . . . 1 . . Parts Damaged . | . . . . . . Bothacking | -11 -10 -10 -9 -9 -9 ------------ Run | Yrd Mat Min Mat Min Exi Used RIF Installer . | . . . . . . Robots Hacked . | . . . . . . Non-combat . | . . . . . . Combat . | . . . . . . Robot Hacks Applied . | . . . . . . Relay Couplers Released . | . . . . . . Fabnet Peak Effective % . | . . . . . . Robots Rewired . | . . . . . . Allies Hacked . | . . . . . . Hacks Repelled . | . . . . . . Allies | -11 -10 -10 -9 -9 -9 -------- Run | Yrd Mat Min Mat Min Exi Total Allies . | . . . . . . Largest Group . | . . . . . . Highest-Rated Group . | . . . . . . Highest-Rated Ally . | . . . . . . Total Orders 1 | . . . 1 . . RETURN 1 | . . . 1 . . Ally Attacks . | . . . . . . Total Damage . | . . . . . . Kills . | . . . . . . Allies Corrupted . | . . . . . . Allies Melted . | . . . . . . Intel | -11 -10 -10 -9 -9 -9 ------- Run | Yrd Mat Min Mat Min Exi Active Infowar (turns) 534 | . 534 . . . . Seismic 534 | . 534 . . . . Robot Analysis Total . | . . . . . . Derelict Logs Recovered 1 | . . . . 1 . Drone Launches 1 | . . . 1 . . Drone Recoveries 1 | . . . 1 . . Exploration | -11 -10 -10 -9 -9 -9 ------------- Run | Yrd Mat Min Mat Min Exi Turns Passed 6361 | 82 1431 546 2607 654 1041 Spaces Moved 2574 | 50 631 239 963 258 433 Core 20 | 8 . . 12 . . Treads 1996 | 42 349 . 914 258 433 Legs 474 | . 209 239 26 . . Wheels 84 | . 73 . 11 . . Hover . | . . . . . . Flight . | . . . . . . Fastest Speed 50 | 50 115 190 50 233 233 Average Speed 203 | 142 164 190 215 233 233 Slowest Speed 400 | 160 190 190 400 233 233 Overloaded Moves . | . . . . . . Propulsion Burnouts . | . . . . . . Robots Hopped . | . . . . . . Potential Cave-ins . | . . . . . . Cave-ins Triggered . | . . . . . . Exploration Rate (%) 59 | 3 91 55 84 65 61 Regions Visited 5 Branch Regions 3 Pre-discovered Areas 5 | . 2 . 1 1 1 Known Exits Taken 1 | . . . 1 . . Unknown Exits Taken 4 | 1 1 1 . 1 . Scrap Searched 3 | . . 1 . 2 . Spaces Dug 80 | . . 73 7 . . Terrain Destroyed 155 | . . 73 65 17 . Melee . | . . . . . . Projectile . | . . . . . . AOE 155 | . . 73 65 17 . Terrain Rammed . | . . . . . . Walls Destroyed . | . . . . . . Machines Disabled . | . . . . . . Actions | -11 -10 -10 -9 -9 -9 --------- Run | Yrd Mat Min Mat Min Exi Total 3170 | 57 822 282 1274 282 453 Wait 115 | . 62 . 50 3 . Move 2569 | 49 630 238 962 257 433 Hop . | . . . . . . Pick Up 61 | 1 14 4 37 1 4 Fast Attach 24 | 6 5 . 13 . . Attach 15 | . 2 3 8 . 2 Detach 2 | . 2 . . . . Swap 43 | 1 4 6 32 . . Drop 37 | . 3 2 27 1 4 Fire 299 | . 100 29 140 20 10 Melee 5 | . . . 5 . . Ram . | . . . . . . Kick . | . . . . . . Crush . | . . . . . . Escape Stasis . | . . . . . . Rewire . | . . . . . . Trap . | . . . . . . Miscellaneous . | . . . . . . Route ------- -11/Scrapyard -10/Materials (discovered 4 exits: *Mat x2 / *Min x2) -10/Mines (discovered 2 exits: *Mat x2) -9/Materials (discovered 6 exits: [*Mat x3] / *Min x2 / Sto) -9/Mines (discovered 2 exits: [*Mat] / *Exi) -9/Exiles History --------- Turn | Location | Event 12 | -11/Scrapyard | Discovered new exit (range 16) 83 | -11/Scrapyard | Entered Materials 145 | -10/Materials | Discovered new exit (range 15) 256 | -10/Materials | Discovered new exit (range 16) 300 | -10/Materials | Build established: Mutant 726 | -10/Materials | Discovered new exit (range 14) 1303 | -10/Materials | Discovered new exit (range 13) 1474 | -10/Materials | Core integrity fell below 50% 1514 | -10/Materials | Entered Mines 1661 | -10/Mines | Received a Rocket Launcher from a helpful Derelict 1881 | -10/Mines | Discovered new exit (range 6) 1952 | -10/Mines | Found the Drone Emporium 1962 | -10/Mines | Found Prototype Device 1963 | -10/Mines | Identified Splice Drone Bay 1999 | -10/Mines | Discovered new exit (range 8) 2019 | -10/Mines | Core integrity fell below 20% 2060 | -10/Mines | Entered Materials 2060 | -9/Materials | Evolved 2 slots: Propulsion x1, Utility x1 2170 | -9/Materials | Lost 5 parts (1p3n1u) 2286 | -9/Materials | Lost 9 parts (3n1u5w) 2423 | -9/Materials | Core integrity fell below 50% 2733 | -9/Materials | Build established: Scavenger-Mutant 2932 | -9/Materials | Discovered new exit (range 14) 2943 | -9/Materials | Identified exit to Mines 2943 | -9/Materials | Identified exit to Storage 3409 | -9/Materials | Discovered new exit (range 9) 3629 | -9/Materials | Build established: Mutant 4186 | -9/Materials | Discovered new exit (range 16) 4667 | -9/Materials | Entered Mines 5097 | -9/Mines | Discovered new exit (range 12) 5276 | -9/Mines | Excavation squad dispatched 5276 | -9/Mines | A large section of the Mines collapsed 5307 | -9/Mines | Deemed a non-threat by the Exiles lab entrance 5307 | -9/Mines | Discovered new exit (range 5) 5321 | -9/Mines | Entered Exiles 5578 | -9/Exiles | Met 8R-AWN 5615 | -9/Exiles | Met EX-HEX 5688 | -9/Exiles | Met EX-BIN 5862 | -9/Exiles | Met EX-DEC 5874 | -9/Exiles | Learned location of Zion (-6) 6086 | -9/Exiles | Aligned with FarCom system 6088 | -9/Exiles | Given EX-Vault access code 6147 | -9/Exiles | Opened EX-Vault 6212 | -9/Exiles | Warned to stay clear of 0b10 Research branches 6336 | -9/Exiles | Attacked by the Exiles 6344 | -9/Exiles | Core integrity fell below 20% 6362 | -9/Exiles | Destroyed by as-26155 with Assembled Heavy Rifle Last Messages --------------- 06348_ Hrd. Light Armor Plating destroyed. 06348_ System corrupted by crushing effect (+4). 06349_ Penetrated by HV Slug. 06350_ Minigun destroyed. 06352_ System corrupted: Matter fused (-10). 06352_ Penetrated by HV Slug. 06352_ Critical hit (Destroy). 06352_ Minigun destroyed. 06352_ Penetrated by HV Slug. 06354_ as-46766 destroyed. 06356_ HV Slug penetrates Wall. 06356_ Penetrated by HV Slug. 06358_ HV Slug penetrates as-37830. 06358_ as-37830 suffers critical hit (Destroy). 06358_ HV Slug penetrates Machine. 06358_ Machine disabled. 06358_ Penetrated by HV Slug. 06361_ Critical hit (Destroy). 06361_ Adv. Treads destroyed. 06361_ Penetrated by HV Slug. Map ----- +----------------------------------------------------+ | ""#??????????????????????????????????????????????? | | ""#??????????????????????????????????????????????? | | ""#??????????????????????????????????????????????? | | ""#??????????????????????????????????????????????? | | ""#??????????????????????????????????????????????? | | ""#??????????????????????????????????????????????? | | ""#??????????????????????????????????????????????? | | ""#??????????????????????????????????????????????? | | """??????????????????????????????????????????????? | | ""#??????????????????????????????????????????????? | | """??????????????????????????????????????????????? | | #??????????????????????????????????????????????? | | ""#??????????????????????????????????????????????? | | ###??????????????????????????????????????????????? | | ?????????????????????????????????????????????????? | | ?????????????????????????????????????????????????? | | ?????????????????????????????????????????????????? | | ########????????????????????????????????????? ? | | """"""""##??????????????????????????????????? ? | | """ """"##?????????????????????????????????# #? | | "" " #???????????????????????????????## ## | | " """#???????????????????????????????# # | | " "#???????????#####???????????????# # | | " "##?????????##" #??????????????## ? | | ""###???????#" g #?????????????## #?? | | """#??????##" @##????????????# #?? | | "#????### aa ###????????### #??? | | ##???# ########## #??? | | ##?## a #""""## #???? | | ### ##??? | | % ## #??? | | #### ##?? | | ""#?#""" "##;# ### | | a a#"""##?#######?#;### # | | ######???????????# ?##### | | ##?????????????????? ????### | | " ##???????????????????? ?????### | | """ ""#?????????????????????????????### | | ""#" "##??????????????????????????????#" | | """##"""""""##???????????????????????????????#### | | ""###########???????????????????????????????????# | | ##??????????????????????????????????????????????## | | ?????????????????????????????????????????????????# | | ?????????????????????????????????????????????????? | | ?????????????????????????????????????????????????? | | ?????????????????????????????????????????????????? | | ?????????????????????????????????????????????????? | | ?????????????????????????????????????????????????? | | ?????????????????????????????????????????????????? | | ?????????????????????????????????????????????????? | +----------------------------------------------------+ Best States ------------- Heat Dissipation 50 Energy Generation 14 Energy Capacity 265 Matter Stores 300 Matter Capacity 300 Sight Range 16 Terrain Scan Density 10 Armor Coverage 225 Evasion (%) 50 Targeting Accuracy 8 Recoil Reduction 3 Item Schematics ----------------- Huge Storage Unit | -9/Materials | Scanalyzed Robot Schematics ------------------ None Fabricated ------------ Nothing Repaired ---------- Nothing Alien Tech Used ----------------- None Achievements -------------- None Challenges ------------ None Game ------ Seed BiomechanicalBattlePrototype Manual? 0 Play Time 00:34:56 Cumulative 418.3 hours Start 2025.06.20 @ 20:29:13 End 2025.06.20 @ 21:10:11 Sessions 1 Manual Loads 0 Difficulty Rogue Special Mode None Game No. 556 Rogue 556 Adventurer 0 Explorer 0 Win Type - Total 9 Types 6/1/1/1/0/0/0/0/0/0 Lore% 75 Gallery% 76 Achievement% 75 Wizard Run 0 Options --------- Layout 0 ASCII 0 Keyboard 1 Movement Numpad Keybinds 0 Fullscreen 2 Font 24/Smallcaps Map View 76x50 Zoom Use 0% Tactical HUD 1 Map Filters NONE Filters NONE Steam 1 RUN: 907d0bf2-bc37-4064-97f4-176f4ea754be